bitfinex/quotes_ETHUSD_20251217
["timestamp","ask_amount","ask_price","bid_price","bid_amount"]
[1766010826104,4.3524,2839.0,2838.3,1.05923413]
[1766010826501,0.46438023,2838.9,2838.3,1.05923413]
[1766010829001,4.81678023,2838.9,2838.3,1.05923413]
[1766010830000,4.81778023,2838.9,2838.3,1.05923413]
[1766010831405,0.001,2838.9,2838.3,1.05923413]
[1766010831592,4.81778023,2838.9,2838.3,1.05923413]
[1766010834088,0.46538023,2838.9,2838.3,1.05923413]
[1766010836314,4.3534,2838.9,2838.3,1.05923413]
[1766010839490,3.6229,2838.7,2838.3,1.05923413]
[1766010839711,4.3524,2838.7,2838.3,1.05923413]
[1766010839911,4.3534,2838.9,2838.3,1.05923413]
[1766010841013,0.001,2838.9,2838.3,1.05923413]
[1766010842415,4.3534,2838.9,2838.3,1.51750539]
[1766010842586,4.3534,2838.9,2838.3,1.05923413]
[1766010842789,3.6239,2838.9,2838.0,0.002]
[1766010842989,4.3524,2838.7,2838.1,1.05923413]
[1766010843199,0.001,2838.9,2838.1,1.05923413]
[1766010843200,0.7295,2838.6,2838.1,1.05923413]
[1766010843414,4.3524,2838.6,2838.1,1.05923413]
[1766010844306,0.7295,2838.5,2838.1,1.05923413]
[1766010844515,4.3524,2838.5,2838.1,1.05923413]
[1766010844998,0.7295,2838.4,2838.1,1.05923413]
[1766010845203,3.6229,2838.5,2838.1,1.05923413]
[1766010845420,4.3524,2838.4,2838.1,1.05923413]
[1766010846327,0.7295,2838.7,2838.1,1.05923413]
[1766010846531,4.3524,2838.5,2838.1,1.05923413]
[1766010852964,4.3024,2838.4,2838.1,1.05923413]
[1766010853259,0.6878,2838.7,2838.1,1.05923413]
[1766010853475,3.6146,2838.6,2838.1,1.05923413]
[1766010853636,0.001,2838.9,2838.1,1.05923413]
[1766010853637,4.3024,2838.5,2838.1,1.05923413]
[1766010855463,0.6878,2838.4,2838.1,1.05923413]
[1766010855763,4.3024,2838.4,2838.1,1.05923413]
[1766010855967,3.6146,2838.6,2838.1,1.05923413]
[1766010856165,4.3024,2838.5,2838.1,1.05923413]
[1766010856568,3.6146,2838.5,2838.1,1.05923413]
[1766010856738,4.3024,2838.4,2838.1,1.05923413]
[1766010858178,3.6146,2838.8,2838.1,1.05923413]
[1766010858340,0.6878,2838.7,2838.1,1.05923413]
[1766010858540,4.3024,2838.5,2838.1,1.05923413]
[1766010860074,0.001,2838.4,2838.1,1.05923413]
[1766010873698,4.3034,2838.4,2838.1,1.05923413]
[1766010873891,0.001,2838.4,2838.1,1.05923413]
[1766010886010,4.2054,2838.4,2838.1,1.05923413]
[1766010886807,0.001,2838.4,2838.1,1.05923413]
[1766010887987,4.2044,2838.1,2837.5,0.46638023]
[1766010888196,4.2044,2838.1,2837.6,0.46438023]
[1766010888811,4.2054,2838.4,2837.6,3.52408298]
[1766010889014,4.2044,2838.3,2837.6,3.52408298]
[1766010889417,3.5291,2838.3,2837.5,0.002]
[1766010889714,0.6753,2837.2,2837.0,0.002]
[1766010889882,3.5291,2837.1,2836.9,0.002]
[1766010890082,4.2044,2836.9,2836.7,0.002]
[1766010890582,6.61471152,2837.4,2836.7,0.002]
[1766010890583,4.2044,2836.8,2836.7,0.002]
[1766010891480,4.2044,2836.7,2836.3,0.002]
[1766010891813,6.61471152,2837.4,2836.3,0.002]
[1766010891979,0.6753,2837.0,2836.3,0.002]
[1766010892179,4.2044,2836.9,2836.3,0.002]
[1766010893211,0.66147115,2837.3,2836.3,0.002]
[1766010893514,4.2044,2837.1,2836.3,0.002]
[1766010893696,4.2044,2837.0,2836.3,0.002]
[1766010894011,4.2044,2837.2,2836.3,3.52772012]
[1766010894522,0.6753,2836.6,2836.3,0.002]
[1766010894719,4.2044,2836.5,2836.3,0.002]
[1766010894896,6.61471152,2836.8,2836.3,0.002]
[1766010895094,4.2044,2836.6,2836.3,0.002]
[1766010896516,6.61471152,2836.8,2836.3,0.002]
[1766010896517,4.2044,2836.8,2836.3,0.002]
[1766010897418,4.2044,2836.6,2836.3,0.002]
[1766010899683,7.08258954,2836.8,2836.3,0.002]
[1766010900290,11.28698954,2836.8,2836.3,0.002]
[1766010900708,7.08258954,2836.8,2836.3,0.002]
[1766010902391,4.2044,2836.7,2836.3,0.002]
[1766010902585,3.5291,2836.7,2836.3,0.002]
[1766010903510,4.2044,2836.7,2836.3,0.002]
[1766010904124,5.33309895,2836.7,2836.3,0.002]
[1766010904425,4.2044,2836.5,2836.3,0.002]
[1766010904928,1.12869895,2836.7,2836.3,0.002]
[1766010905293,0.001,2836.8,2836.3,0.002]
[1766010906132,4.2054,2836.8,2836.3,0.002]
[1766010907351,0.001,2836.8,2836.3,0.002]
[1766010907653,4.2054,2836.8,2836.3,0.002]
[1766010908252,0.001,2836.8,2836.3,0.002]
[1766010908758,0.46438023,2837.0,2836.3,0.002]
[1766010908917,0.51553673,2836.9,2836.3,0.002]
[1766010909121,4.2044,2836.8,2836.3,0.002]
[1766010912350,7.07909175,2836.7,2836.2,0.002]
[1766010912565,4.0534,2836.2,2835.5,0.002]
[1766010912858,4.0534,2836.1,2835.5,0.002]
[1766010914056,3.4026,2835.9,2835.5,0.002]
[1766010914230,4.0534,2835.7,2835.5,0.002]
[1766010914420,3.4026,2835.8,2835.5,0.002]
[1766010914625,0.6508,2835.9,2835.5,0.002]
[1766010915131,4.0534,2835.9,2835.5,0.002]
[1766010915342,6.61471152,2836.1,2835.5,0.002]
[1766010916156,0.46438023,2836.3,2835.5,0.002]
[1766010916331,1.57762941,2836.3,2835.5,0.002]
[1766010917461,4.0534,2836.2,2835.5,0.002]
[1766010917749,1.57762941,2836.3,2835.5,0.002]
[1766010918049,3.4026,2836.0,2835.5,0.002]
[1766010918350,4.0534,2835.9,2835.5,0.002]
[1766010919362,0.46438023,2836.6,2835.5,0.002]
[1766010919563,4.0534,2836.4,2835.5,0.002]
[1766010920249,0.6508,2836.1,2835.5,0.002]
[1766010920462,4.0534,2835.8,2835.5,0.002]
[1766010920830,0.6508,2835.7,2835.5,0.002]
[1766010921042,4.0534,2835.6,2835.1,0.002]
[1766010921253,0.6508,2835.9,2835.1,0.002]
[1766010921433,3.4026,2835.7,2835.1,0.002]
[1766010921758,4.0534,2835.5,2835.1,0.002]
[1766010922659,4.0534,2835.3,2835.1,0.002]
[1766010924159,4.0534,2835.2,2834.5,0.46438023]
[1766010925061,3.4026,2835.2,2834.4,0.002]
[1766010925271,0.6508,2835.0,2834.4,0.002]
[1766010925637,3.4026,2835.1,2834.4,0.002]
[1766010925959,0.6508,2835.2,2834.4,0.002]
[1766010926128,0.6508,2835.6,2834.4,0.002]
[1766010926329,0.46438023,2835.5,2834.4,0.002]
[1766010926554,4.51778023,2835.3,2834.5,0.47321972]
[1766010927053,0.46438023,2835.5,2834.5,0.47321972]
[1766010927258,1.52502994,2835.7,2834.5,0.47521972]
[1766010927459,3.4026,2835.5,2834.5,0.47521972]
[1766010927630,0.46438023,2835.2,2834.5,0.002]
[1766010927830,0.46438023,2835.4,2834.5,0.002]
[1766010928030,4.51778023,2835.0,2834.5,0.002]
[1766010929062,3.4026,2835.3,2834.5,0.002]
[1766010929228,3.4026,2835.1,2834.5,0.002]
[1766010929434,4.0534,2834.9,2834.5,0.002]
[1766010929657,0.6508,2834.8,2834.5,0.002]
[1766010929966,4.0534,2834.8,2834.5,0.002]
[1766010931557,0.6508,2834.7,2834.5,0.002]
[1766010931759,3.4026,2834.9,2834.5,0.002]
[1766010931961,4.0534,2834.9,2834.5,0.002]
[1766010932864,0.6508,2834.8,2834.5,0.002]
[1766010933850,4.0534,2834.8,2834.5,0.002]
[1766010937071,4.0534,2834.8,2834.3,1.202]
[1766010937072,3.4026,2834.5,2834.3,1.202]
[1766010937275,0.6508,2834.2,2834.1,0.6]
[1766010937441,4.0534,2834.2,2834.1,0.6]
[1766010937847,4.0534,2834.2,2834.0,0.002]
[1766010938164,3.4026,2834.6,2834.0,0.002]
[1766010938350,4.0534,2834.4,2834.0,0.002]
[1766010938545,4.0534,2834.3,2834.0,0.002]
[1766010941072,1.06090852,2834.7,2834.0,0.002]
[1766010941270,0.62,2834.5,2834.0,0.002]
[1766010941571,4.1007,2834.4,2834.0,0.002]
[1766010943151,0.62,2834.3,2834.0,0.002]
[1766010943354,4.1007,2834.2,2834.0,0.002]
[1766010944098,4.1007,2834.1,2833.7,1.2]
[1766010944387,4.1007,2834.0,2833.7,0.6]
[1766010944696,4.1007,2834.1,2833.7,0.6]
[1766010946567,3.4807,2834.1,2833.7,0.6]
[1766010946770,4.1007,2833.9,2833.7,0.6]
[1766010948484,4.1007,2833.8,2833.7,0.6]
[1766010953103,0.6,2834.3,2833.7,0.6]
[1766010953305,0.62,2834.3,2833.7,0.6]
[1766010953513,0.46438023,2834.3,2833.7,0.6]
[1766010953802,0.62,2834.0,2833.6,0.002]
[1766010954006,4.1007,2833.7,2833.6,0.002]
[1766010955268,4.1007,2833.7,2833.3,0.002]
[1766010956183,4.1007,2833.7,2833.5,0.002]
[1766010956698,3.4807,2833.7,2833.5,0.002]
[1766010956904,0.62,2833.6,2833.5,0.002]
[1766010958105,4.1007,2833.7,2833.5,0.002]
[1766010958604,4.1017,2834.0,2833.5,0.002]
[1766010958808,4.1007,2833.9,2833.5,0.002]
[1766010960091,4.1017,2834.0,2833.5,0.002]
[1766010960494,0.62,2833.9,2833.5,0.002]
[1766010960985,4.1007,2833.9,2833.5,0.002]
[1766010961999,3.4807,2833.5,2833.3,0.002]
[1766010962308,4.1007,2833.7,2833.3,0.002]
[1766010967401,0.001,2834.0,2833.3,0.002]
[1766010967913,4.1017,2834.0,2833.3,0.002]
[1766010968837,3.52735711,2835.0,2833.3,0.002]
[1766010968838,0.46538023,2834.8,2833.4,7.04147041]
[1766010968999,4.56608023,2834.8,2833.6,0.405504]
[1766010969722,4.1007,2835.3,2833.8,7.50585064]
[1766010969951,3.4796,2835.2,2834.0,0.405504]
[1766010970137,0.6196,2834.4,2833.3,0.002]
[1766010970326,3.4786,2834.2,2833.3,0.002]
[1766010970531,0.46438023,2834.4,2833.3,0.002]
[1766010970532,4.0982,2833.9,2833.3,0.002]
[1766010972754,4.3361,2834.3,2833.3,0.002]
[1766010973048,0.43361,2834.3,2833.3,0.002]
[1766010973231,1.33266161,2834.6,2833.3,0.002]
[1766010973232,0.46438023,2834.1,2833.3,0.002]
[1766010973425,0.46438023,2834.4,2833.3,0.002]
[1766010973648,4.3361,2834.2,2833.3,0.002]
[1766010973826,0.46438023,2834.0,2833.3,0.002]
[1766010974347,4.86050666,2834.6,2833.3,0.002]
[1766010974548,0.6147,2834.4,2833.3,0.002]
[1766010974747,0.46438023,2834.3,2833.3,0.002]
[1766010974931,0.46438023,2834.1,2833.3,0.002]
[1766010978652,4.82215067,2834.5,2833.3,0.002]
[1766010978857,1.37659652,2834.5,2833.3,0.002]
[1766010979161,1.42520131,2834.4,2833.3,0.002]
[1766010979332,3.7214,2834.0,2833.3,0.002]
[1766010979537,4.3361,2833.9,2833.3,0.002]
[1766010980064,1.61373569,2834.4,2833.3,0.002]
[1766010980372,4.3361,2834.4,2833.3,0.002]
[1766010980668,4.80048023,2834.4,2833.3,0.002]
[1766010980961,0.6147,2834.4,2833.3,0.002]
[1766010981119,0.001,2834.1,2833.3,0.002]
[1766010982757,3.7214,2834.8,2833.5,0.405504]
[1766010982930,0.6147,2834.3,2833.5,0.405504]
[1766010983124,0.6147,2834.0,2833.3,0.002]
[1766010983330,6.63576527,2834.2,2833.3,0.002]
[1766010983551,4.80048023,2834.1,2833.3,0.002]
[1766010983940,6.63576527,2834.5,2833.3,0.002]
[1766010984256,0.46438023,2834.4,2833.3,0.002]
[1766010984452,0.6147,2834.1,2833.3,0.407504]
[1766010985062,0.4396009,2834.6,2833.3,0.407504]
[1766010985356,4.3361,2834.4,2833.5,0.405504]
[1766010985565,0.46438023,2834.5,2833.5,0.405504]
[1766010985859,10.97186527,2835.0,2833.6,0.04588208]
[1766010986362,0.46438023,2834.9,2833.6,0.04588208]
[1766010987345,4.80048023,2834.9,2833.8,0.405504]
[1766010987662,4.80048023,2834.9,2834.0,0.405504]
[1766010987889,0.001,2835.3,2834.0,0.405504]
[1766010988075,0.001,2835.3,2834.3,0.405504]
[1766010989462,0.001,2835.3,2834.5,0.405504]
[1766010991635,0.001,2835.3,2834.6,3.52783461]
[1766010991840,0.001,2835.3,2834.7,0.39333386]
[1766010993250,4.3371,2835.3,2834.7,0.39333386]
[1766010993450,0.6147,2835.2,2834.5,3.52784407]
[1766010993651,3.7214,2835.1,2834.1,0.405504]
[1766010993854,6.63576527,2835.2,2833.4,0.04588208]
[1766010993855,0.6147,2834.7,2833.4,0.04588208]
[1766010994188,4.3361,2834.5,2833.5,3.52920416]
[1766010994572,4.3361,2834.5,2833.6,0.405504]
[1766010995076,4.3361,2834.5,2833.5,3.52920416]
[1766010995670,4.3361,2834.5,2833.6,3.93453421]
[1766010999180,0.6147,2834.4,2833.6,3.93453421]
[1766010999377,6.63576527,2834.7,2833.7,0.74636975]
[1766010999688,0.6147,2834.5,2833.7,0.74636975]
[1766011000326,0.6147,2834.5,2833.7,4.27526692]
[1766011000496,4.3361,2834.5,2833.7,4.27526692]
[1766011000990,6.63576527,2834.7,2833.7,4.27526692]
[1766011001190,4.79477653,2834.6,2833.7,4.27526692]
[1766011003508,4.1312,2834.5,2833.7,4.27526692]
[1766011003928,4.1322,2834.5,2833.7,4.27526692]
[1766011004087,4.1312,2834.4,2833.7,4.27526692]
[1766011006323,4.1312,2834.4,2833.7,0.74636975]
[1766011006501,4.61077765,2834.4,2833.6,3.93451926]
[1766011006817,4.61077765,2834.4,2833.7,3.52894757]
[1766011008342,4.1312,2834.4,2833.7,3.52894757]
[1766011011914,0.5923,2834.3,2833.7,3.52894757]
[1766011015754,3.5389,2834.4,2833.7,3.52894757]
[1766011016066,6.6359738,2834.5,2833.7,3.52894757]
[1766011016236,6.6359738,2834.5,2833.6,3.93452914]
[1766011016555,10.7661738,2834.2,2833.5,0.002]
[1766011020157,6.6349738,2834.2,2833.5,0.002]
[1766011020363,4.1312,2834.1,2833.5,0.002]
[1766011020739,6.6349738,2834.2,2833.5,0.002]
[1766011020935,7.37738968,2834.2,2833.5,0.002]
[1766011021338,3.5389,2834.1,2833.5,0.002]
[1766011021555,4.1312,2834.1,2833.5,0.002]
[1766011021752,0.5923,2833.7,2833.5,0.002]
[1766011021957,4.1312,2833.7,2833.5,0.002]
[1766011022265,4.1312,2833.8,2833.5,0.002]
[1766011022638,10.7661738,2833.9,2833.5,0.002]
[1766011024281,3.5389,2833.8,2833.3,0.002]
[1766011024447,4.1312,2833.4,2833.2,0.002]
[1766011024841,4.1312,2833.5,2833.2,0.002]
[1766011025042,10.7661738,2833.6,2833.2,0.002]
[1766011026067,4.1312,2833.5,2833.2,0.002]
[1766011026647,6.6349738,2833.6,2833.2,0.002]
[1766011026848,4.1312,2833.5,2833.2,0.002]
[1766011029162,4.1312,2833.5,2833.1,0.002]
[1766011031467,3.5389,2833.5,2833.1,0.002]
[1766011031657,4.3376,2833.4,2833.1,0.002]
[1766011033150,7.29847118,2833.6,2833.1,0.002]
[1766011033151,4.3376,2833.5,2833.1,0.002]
[1766011034070,4.3376,2833.4,2833.1,0.002]
[1766011037886,0.001,2833.5,2833.1,0.002]
[1766011038090,4.3386,2833.5,2833.1,0.002]
[1766011038967,3.74,2833.3,2833.1,0.002]
[1766011039169,4.3376,2833.4,2833.1,0.002]
[1766011040283,3.74,2833.4,2833.1,0.002]
[1766011040481,4.3376,2833.3,2833.1,0.002]
[1766011040855,4.3376,2833.4,2833.1,0.002]
[1766011041262,3.74,2833.1,2832.5,0.002]
[1766011041490,4.3376,2832.9,2832.5,0.002]
[1766011041976,0.001,2833.5,2832.7,3.53017247]
[1766011042176,0.001,2833.5,2832.8,0.405504]
[1766011042563,4.3376,2833.8,2832.8,0.405504]
[1766011042759,0.46438023,2833.8,2833.0,0.405504]
[1766011042964,0.46438023,2834.0,2833.1,3.52970244]
[1766011043205,0.46438023,2834.0,2833.2,0.405504]
[1766011043407,4.80198023,2834.0,2833.2,0.405504]
[1766011045415,0.001,2833.5,2833.3,3.52945328]
[1766011045594,0.001,2833.5,2833.3,4.27591925]
[1766011045794,0.001,2833.5,2833.3,0.74646597]
[1766011050502,0.001,2833.5,2833.3,4.27589166]
[1766011051099,4.3376,2834.4,2833.3,4.27589166]
[1766011051427,4.80198023,2834.3,2833.3,4.27589166]
[1766011051617,5.94594911,2834.3,2833.4,0.46813957]
[1766011052532,4.3386,2834.5,2833.6,0.405504]
[1766011052949,0.001,2834.5,2833.6,0.405504]
[1766011053914,0.46538023,2834.7,2833.6,0.965504]
[1766011054662,0.46538023,2834.7,2833.8,0.405504]
[1766011054804,0.001,2834.7,2833.9,0.74634141]
[1766011055135,0.46538023,2834.7,2833.9,0.74634141]
[1766011056032,0.46538023,2834.7,2834.0,3.52858151]
[1766011056333,0.001,2834.7,2834.0,3.52858151]
[1766011057132,0.46438023,2834.9,2834.0,3.52858151]
[1766011057334,0.46438023,2834.9,2834.1,0.42749229]
[1766011058730,0.46438023,2835.0,2834.1,0.42749229]
[1766011058932,4.80198023,2835.0,2834.1,0.42749229]
[1766011060128,0.001,2834.7,2834.1,0.42749229]
[1766011067247,0.001,2834.7,2833.9,4.27499856]
[1766011067452,0.001,2834.7,2834.0,0.002]
[1766011072282,0.001,2834.7,2834.0,0.407504]
[1766011074174,0.001,2834.7,2834.1,3.528457]
[1766011076713,0.001,2834.7,2834.0,3.93601789]
[1766011076915,0.001,2834.7,2834.1,0.82110165]
[1766011080426,4.1632,2834.9,2834.1,0.82110165]
[1766011080427,4.1642,2835.2,2834.1,4.34949862]
[1766011080715,4.1642,2835.2,2834.2,0.405504]
[1766011080716,0.001,2835.2,2834.2,0.405504]
[1766011081114,0.001,2835.6,2834.2,0.91576631]
[1766011081493,3.5749,2835.6,2834.2,0.91576631]
[1766011081693,3.5749,2835.6,2834.4,0.405504]
[1766011081901,3.5749,2835.6,2834.4,0.965504]
[1766011082097,0.001,2834.7,2834.4,0.965504]
[1766011082316,0.001,2834.7,2834.5,7.05591814]
[1766011082621,0.001,2834.7,2834.6,0.405504]
[1766011082827,0.001,2834.7,2834.6,1.20764621]
[1766011083623,0.001,2835.6,2834.6,1.20764621]
[1766011083930,4.1632,2835.4,2834.6,1.20764621]
[1766011085324,4.1632,2835.4,2834.6,4.73540897]
[1766011087238,0.5893,2835.3,2834.0,0.002]
[1766011087436,4.1632,2834.4,2834.0,0.002]
[1766011101567,3.6872,2834.6,2834.0,0.002]
[1766011102069,4.2682,2834.5,2834.0,0.002]
[1766011104046,3.6872,2834.5,2834.0,0.002]
[1766011104248,0.581,2834.4,2834.0,0.002]
[1766011104472,4.2682,2834.4,2834.0,0.002]
[1766011106980,4.2682,2834.6,2834.0,0.002]
[1766011107276,4.2682,2834.5,2834.0,0.002]
[1766011108094,6.63447623,2834.7,2834.0,0.002]
[1766011108294,10.90267623,2834.7,2834.0,0.002]
[1766011109092,0.581,2834.5,2834.0,0.002]
[1766011109388,4.2682,2834.5,2834.0,0.002]
[1766011110583,6.63447623,2834.7,2834.0,0.002]
[1766011110873,10.90267623,2834.7,2834.0,0.002]
[1766011111377,6.63447623,2834.7,2834.0,0.002]
[1766011111577,4.2682,2834.6,2834.0,0.002]
[1766011114180,3.6872,2834.4,2834.0,0.002]
[1766011114365,4.2682,2834.3,2834.0,0.002]
[1766011114561,6.63447623,2834.7,2834.0,0.002]
[1766011114770,3.6872,2834.4,2834.0,0.002]
[1766011115172,4.2682,2834.5,2834.0,0.002]
[1766011116162,6.63447623,2834.7,2834.0,0.002]
[1766011116362,3.6872,2834.6,2834.0,0.002]
[1766011116590,4.2682,2834.5,2834.0,0.002]
[1766011117394,6.63447623,2834.7,2834.0,0.002]
[1766011117560,10.90267623,2834.7,2834.0,0.002]
[1766011119665,6.63447623,2834.7,2834.0,0.002]
[1766011119867,4.2682,2834.6,2834.0,0.002]
[1766011120686,3.6872,2834.6,2834.0,0.002]
[1766011120901,4.1892,2834.5,2834.0,0.002]
[1766011128230,6.63547623,2834.7,2834.0,0.002]
[1766011128400,7.71804385,2834.7,2834.0,0.002]
[1766011131629,4.1892,2834.6,2834.0,0.002]
[1766011133533,0.46438023,2834.6,2834.0,0.002]
[1766011134342,4.65358023,2834.6,2834.0,0.002]
[1766011135251,4.65358023,2834.6,2832.4,0.002]
[1766011135252,6.63447623,2834.1,2832.4,0.002]
[1766011135449,1.08356762,2834.7,2833.0,3.52973454]
[1766011135450,4.1892,2833.6,2833.0,3.52973454]
[1766011135616,4.1892,2833.6,2833.0,3.52981541]
[1766011135822,4.1892,2833.6,2833.1,3.52969806]
[1766011136216,4.1892,2833.6,2833.0,3.52976231]
[1766011136425,4.1892,2833.6,2833.1,3.52961996]
[1766011136646,4.1892,2833.6,2833.1,4.23555819]
[1766011137736,0.597,2833.5,2833.1,4.23555819]
[1766011137938,4.1892,2833.5,2833.1,4.23555819]
[1766011140430,10.82367623,2833.7,2833.1,7.76526063]
[1766011140650,10.82367623,2833.7,2833.1,4.23555819]
[1766011140948,10.82367623,2833.7,2833.1,3.52961996]
[1766011142354,4.1892,2833.7,2833.1,7.0593224]
[1766011142526,4.1892,2833.7,2832.9,0.46438023]
[1766011142931,4.1892,2833.7,2832.9,1.02438023]
[1766011145042,4.1892,2833.7,2833.1,0.46438023]
[1766011145252,4.1892,2833.7,2833.2,0.75240343]
[1766011145854,10.82367623,2833.9,2833.2,0.75240343]
[1766011146840,10.82367623,2833.9,2833.3,3.52945328]
[1766011148267,4.1892,2833.9,2833.3,3.52945328]
[1766011148453,6.63757313,2834.0,2833.3,3.52945328]
[1766011148771,10.82677313,2834.1,2833.3,4.31060357]
[1766011149265,4.1892,2834.0,2833.3,4.31060357]
[1766011149434,6.63757313,2834.1,2833.3,4.31060357]
[1766011150153,11.12397313,2834.1,2833.3,4.31060357]
[1766011153662,4.2139,2834.0,2833.3,4.31060357]
[1766011153861,4.2139,2834.0,2833.4,0.43106036]
[1766011162499,4.2149,2834.0,2833.4,0.43106036]
[1766011165101,0.001,2834.0,2833.4,0.43106036]
[1766011165307,3.6187,2834.0,2833.4,0.43106036]
[1766011165511,0.001,2834.0,2833.4,0.43106036]
[1766011168109,0.001,2834.0,2833.3,4.09144125]
[1766011169512,0.001,2834.0,2833.3,0.562]
[1766011170111,0.001,2834.0,2833.3,4.09143975]
[1766011172411,0.5962,2833.9,2833.3,0.562]
[1766011172590,4.2139,2833.9,2833.3,0.562]
[1766011173019,0.001,2834.0,2833.3,0.562]
[1766011173191,0.001,2834.0,2833.4,0.40914851]
[1766011174520,4.2149,2834.0,2833.4,0.40914851]
[1766011175017,3.6187,2834.0,2833.4,0.40914851]
[1766011175223,4.2139,2833.8,2833.4,0.40914851]
[1766011175396,4.2149,2834.0,2833.4,0.40914851]
[1766011178922,4.2149,2834.0,2833.4,0.41114851]
[1766011185831,0.001,2834.0,2833.4,0.41114851]
[1766011186607,4.1908,2834.0,2833.4,0.41114851]
[1766011190634,0.001,2834.0,2833.4,0.41114851]
[1766011191145,4.1908,2834.0,2833.4,0.41114851]
[1766011195554,4.1908,2834.0,2833.5,0.3942595]
[1766011197160,0.001,2834.0,2833.5,0.3942595]
[1766011197331,3.5836,2834.0,2833.5,0.3942595]
[1766011197528,4.1908,2834.0,2833.5,0.3942595]
[1766011198158,0.001,2834.0,2833.5,0.3942595]
[1766011200163,1.06100983,2834.5,2833.5,0.3942595]
[1766011200340,0.46538023,2834.7,2833.7,0.405504]
[1766011200541,0.46661802,2834.7,2833.7,0.405504]
[1766011200742,0.46438023,2834.6,2833.7,0.405504]
[1766011201057,0.6072,2834.6,2833.7,3.9344388]
[1766011201366,0.001,2834.7,2833.3,0.002]
[1766011201367,6.63644289,2833.8,2833.3,0.002]
[1766011201540,0.6072,2833.5,2833.1,0.002]
[1766011201742,4.1898,2833.3,2833.1,0.002]
[1766011202662,1.12802452,2833.7,2833.1,0.002]
[1766011202831,4.1898,2833.5,2833.1,0.002]
[1766011203036,3.5826,2833.3,2833.1,0.002]
[1766011203361,1.12802452,2833.7,2832.9,0.002]
[1766011203362,4.1898,2833.1,2832.9,0.002]
[1766011203562,0.6072,2833.0,2832.9,0.002]
[1766011203954,4.1898,2833.0,2832.9,0.002]
[1766011210463,1.12802452,2833.7,2832.9,0.002]
[1766011210664,0.651,2833.3,2832.9,0.002]
[1766011210833,0.6482,2833.1,2832.9,0.002]
[1766011211038,4.1426,2833.1,2832.9,0.002]
[1766011212466,0.6482,2832.8,2832.5,0.002]
[1766011212641,4.1426,2832.7,2832.5,0.002]
[1766011213040,0.6482,2832.6,2832.5,0.002]
[1766011213242,4.1426,2832.6,2832.5,0.002]
[1766011213646,4.1426,2832.6,2832.4,0.002]
[1766011213852,4.1426,2832.5,2832.4,0.002]
[1766011214464,1.02438023,2833.2,2832.4,0.002]
[1766011214765,4.1426,2832.5,2832.3,0.002]
[1766011215063,4.1426,2832.3,2832.2,0.002]
[1766011215367,3.4944,2832.6,2832.2,0.002]
[1766011215546,4.1426,2832.5,2832.2,0.002]
[1766011215754,4.55686,2832.5,2832.2,0.002]
[1766011216840,0.14551902,2832.8,2832.2,0.002]
[1766011217370,4.28811902,2832.8,2832.2,0.002]
[1766011217567,3.4944,2832.6,2832.2,0.002]
[1766011217772,4.1426,2832.4,2832.2,0.002]
[1766011218269,3.4944,2832.4,2832.2,0.002]
[1766011218480,4.1426,2832.3,2832.2,0.002]
[1766011218881,4.1426,2832.3,2832.1,0.002]
[1766011219382,4.1426,2832.2,2832.1,0.002]
[1766011219755,0.6482,2832.1,2832.0,0.002]
[1766011219947,4.1426,2832.1,2832.0,0.002]
[1766011221392,4.1426,2832.1,2831.7,0.002]
[1766011221393,4.1426,2831.9,2831.7,0.002]
[1766011221554,0.6482,2831.8,2831.7,0.002]
[1766011221756,4.1426,2831.8,2831.7,0.002]
[1766011226519,4.1426,2831.6,2831.2,0.002]
[1766011226701,4.1426,2831.5,2831.2,0.002]
[1766011227215,3.4944,2831.4,2831.2,0.002]
[1766011227527,4.1426,2831.4,2831.2,0.002]
[1766011228936,0.6482,2831.6,2831.2,0.002]
[1766011229140,4.1426,2831.5,2831.2,0.002]
[1766011233366,3.4944,2831.8,2831.2,0.002]
[1766011233538,3.4944,2831.6,2831.2,0.002]
[1766011233838,4.1426,2831.5,2831.2,0.002]
[1766011240963,7.7097961,2831.9,2831.2,0.002]
[1766011241167,4.4529,2831.9,2831.2,0.002]
[1766011242140,3.8091,2831.9,2831.2,0.002]
[1766011242432,4.4529,2831.8,2831.2,0.002]
[1766011242831,1.04579962,2831.9,2831.2,0.002]
[1766011243076,0.6438,2831.7,2831.2,0.002]
[1766011243361,0.6438,2831.6,2831.2,0.002]
[1766011243534,4.4529,2831.6,2831.2,0.002]
[1766011244874,4.4529,2831.8,2831.2,0.002]
[1766011245580,0.001,2831.6,2831.2,0.002]
[1766011251764,4.4539,2832.0,2831.2,0.002]
[1766011252290,0.001,2832.0,2831.2,0.002]
[1766011252602,6.64789619,2832.4,2831.3,0.405504]
[1766011252752,4.4529,2832.2,2831.3,0.405504]
[1766011253097,1.10818023,2832.2,2831.3,0.405504]
[1766011253587,0.46438023,2832.2,2831.3,0.405504]
[1766011253761,3.8091,2832.4,2831.5,0.405504]
[1766011254080,4.4529,2832.2,2831.7,0.405504]
[1766011254490,4.4529,2832.1,2831.7,0.405504]
[1766011254663,3.8091,2832.4,2831.7,0.405504]
[1766011254867,4.4529,2832.1,2831.7,0.405504]
[1766011255090,3.8091,2832.2,2831.3,0.405504]
[1766011255426,4.4529,2832.1,2831.3,0.405504]